bitfinex/quotes_ETHUSD_20250720
["timestamp","ask_amount","ask_price","bid_price","bid_amount"]
[1753012306084,0.05176598,3751.6,3751.5,27.228451]
[1753012306285,0.002,3752.8,3751.5,27.228451]
[1753012306286,0.002,3751.7,3751.6,3.0]
[1753012306630,0.002,3752.8,3751.8,3.0]
[1753012306847,0.002,3752.8,3752.0,3.0]
[1753012307024,0.002,3752.8,3752.2,3.0]
[1753012307219,0.002,3752.8,3752.3,24.941662]
[1753012307523,0.002,3752.8,3752.4,5.37107861]
[1753012307726,0.002,3752.8,3752.6,3.0]
[1753012307922,0.002,3752.8,3752.7,0.02664748]
[1753012308125,0.002,3752.8,3752.6,0.47164819]
[1753012308333,0.002,3752.8,3752.6,0.445]
[1753012308645,0.002,3752.8,3752.7,7.21315648]
[1753012308846,0.002,3752.8,3752.7,8.681128]
[1753012309046,0.002,3752.8,3752.7,5.0967]
[1753012309746,0.002,3752.8,3752.7,3.0]
[1753012310145,0.002,3752.8,3752.7,3.445]
[1753012310938,0.002,3752.8,3752.7,3.0]
[1753012314747,0.002,3752.8,3752.7,8.828597]
[1753012314934,0.002,3752.8,3752.7,7.028427]
[1753012315124,0.002,3752.8,3752.7,3.445]
[1753012315322,0.002,3752.8,3752.7,3.0]
[1753012315751,0.002,3752.8,3752.7,26.197297]
[1753012315957,0.002,3752.8,3752.7,14.500967]
[1753012316254,0.002,3752.8,3752.7,12.859563]
[1753012316754,0.002,3752.8,3752.7,14.459163]
[1753012317053,0.002,3752.8,3752.7,5.1774]
[1753012317560,0.002,3752.8,3752.7,2.1774]
[1753012317922,0.002,3752.8,3752.7,2.20404748]
[1753012318550,0.002,3752.8,3752.7,25.78745148]
[1753012318751,0.002,3752.8,3752.7,22.528964]
[1753012318941,0.002,3752.8,3752.7,19.763108]
[1753012319664,0.002,3752.8,3752.7,28.394997]
[1753012319957,0.002,3752.8,3752.7,12.356724]
[1753012320157,0.002,3752.8,3752.7,12.105386]
[1753012320349,0.002,3752.8,3752.7,9.252333]
[1753012320550,0.002,3752.8,3752.7,22.989452]
[1753012320750,0.002,3752.8,3752.7,27.987661]
[1753012320953,0.002,3752.8,3752.7,25.523901]
[1753012321552,0.002,3752.8,3752.7,35.1774]
[1753012321867,0.002,3752.8,3752.7,20.616505]
[1753012322043,0.002,3752.8,3752.7,3.1328]
[1753012322238,0.002,3752.8,3752.7,5.134818]
[1753012322438,0.002,3752.8,3752.7,2.648456]
[1753012322738,0.002,3752.8,3752.7,0.1328]
[1753012323064,0.002,3752.8,3752.7,3.1328]
[1753012323256,0.002,3752.8,3752.7,10.3926]
[1753012323459,0.002,3752.8,3752.7,14.189701]
[1753012323661,0.002,3752.8,3752.7,5.200748]
[1753012323861,0.002,3752.8,3752.7,31.426525]
[1753012324061,0.002,3752.8,3752.7,7.241002]
[1753012324472,0.002,3752.8,3752.7,3.0]
[1753012325234,0.002,3752.8,3752.7,6.941438]
[1753012325468,0.002,3752.8,3752.7,31.229677]
[1753012325656,0.002,3752.8,3752.7,6.551588]
[1753012325860,0.002,3752.8,3752.7,3.0]
[1753012328356,0.002,3752.8,3752.7,3.4599]
[1753012328532,0.46927591,3754.1,3752.9,2.39811385]
[1753012328533,0.02867591,3754.1,3752.9,2.39811385]
[1753012328735,0.4406,3756.6,3753.2,1.37988324]
[1753012328933,1.6026,3756.3,3753.5,4.37515196]
[1753012329166,0.4406,3756.1,3753.8,1.36764512]
[1753012329368,1.6026,3756.3,3754.0,3.0]
[1753012329576,1.5533,3757.0,3754.3,0.55]
[1753012329869,1.5533,3757.0,3754.7,0.55]
[1753012330056,1.5533,3757.0,3755.0,1.5981]
[1753012330370,1.5533,3757.0,3755.2,3.0]
[1753012330571,1.5533,3757.6,3755.2,36.23478391]
[1753012330779,0.02,3757.9,3755.7,0.55]
[1753012330976,0.02,3757.9,3755.8,35.20530346]
[1753012331266,0.02,3757.9,3755.8,37.26330346]
[1753012331468,0.02,3757.9,3755.8,16.10714355]
[1753012331672,1.9939,3757.1,3755.8,5.718444]
[1753012331846,1.5533,3757.1,3755.8,5.74506948]
[1753012332046,1.5533,3757.1,3755.8,22.04532048]
[1753012332259,1.9939,3757.6,3755.8,15.10173991]
[1753012332465,1.5533,3757.6,3755.8,15.10173991]
[1753012332661,0.4406,3757.5,3755.8,15.10173991]
[1753012332873,0.4406,3757.5,3755.8,10.84412391]
[1753012333076,0.4406,3757.5,3755.8,9.893515]
[1753012333279,0.4406,3757.0,3755.8,8.768747]
[1753012333450,0.4406,3757.0,3755.8,5.035215]
[1753012334063,0.4406,3757.0,3755.8,3.0]
[1753012334661,0.4406,3757.0,3755.8,5.71384]
[1753012334865,0.4406,3756.3,3755.1,0.72468391]
[1753012335065,0.4406,3755.8,3754.3,0.19839589]
[1753012335268,0.4406,3755.8,3754.4,2.290444]
[1753012335269,1.5593,3755.7,3754.4,2.290444]
[1753012335468,1.5593,3755.7,3753.6,1.6047]
[1753012335469,0.64259,3755.6,3754.2,3.0]
[1753012335776,0.4406,3755.5,3754.4,3.0]
[1753012335953,0.4406,3755.5,3754.5,6.651405]
[1753012336142,0.4406,3755.5,3754.6,0.02663399]
[1753012336346,1.5593,3755.7,3754.0,0.4599]
[1753012336347,1.5633,3755.7,3754.8,3.0]
[1753012336677,1.5633,3755.7,3755.0,3.0]
[1753012336881,1.5633,3755.7,3754.4,3.0]
[1753012337187,1.5633,3755.7,3754.6,3.0]
[1753012337347,0.4406,3755.6,3754.4,3.0]
[1753012337550,0.4406,3755.6,3754.5,3.822453]
[1753012337751,0.1328,3755.1,3754.5,3.822453]
[1753012337952,0.1328,3755.1,3754.5,3.366816]
[1753012338181,0.1328,3755.1,3754.4,3.1328]
[1753012338385,0.1328,3755.1,3754.4,0.1328]
[1753012339069,0.1328,3754.4,3754.3,4.0]
[1753012339257,0.5734,3754.4,3754.3,4.0]
[1753012339453,0.1328,3754.4,3754.3,4.0]
[1753012339653,0.1328,3754.4,3754.3,7.0]
[1753012339654,0.1154,3754.4,3754.3,7.0]
[1753012339884,0.556,3754.4,3754.3,7.0]
[1753012340062,0.556,3754.4,3754.3,4.0]
[1753012341674,2.2115,3754.4,3754.3,4.0]
[1753012341879,2.43265,3754.4,3754.3,4.0]
[1753012342078,2.43265,3754.4,3754.3,1.0]
[1753012343397,1.6555,3754.3,3751.8,1.6115]
[1753012343700,1.6624,3754.2,3752.6,0.20356259]
[1753012344053,1.6624,3754.0,3752.6,0.20356259]
[1753012344253,1.6624,3753.8,3752.6,0.20356259]
[1753012344649,0.4406,3753.7,3752.6,0.20356259]
[1753012345578,1.6624,3753.6,3752.6,0.20356259]
[1753012345985,0.4406,3753.5,3752.6,0.20356259]
[1753012346286,0.4406,3753.5,3752.4,0.1328]
[1753012347286,0.4406,3753.5,3753.4,0.7]
[1753012347473,0.6509,3753.5,3753.4,0.7]
[1753012347672,0.2103,3753.5,3753.4,0.7]
[1753012348006,0.6408,3753.5,3753.4,0.7]
[1753012348697,1.6624,3753.6,3753.4,0.7]
[1753012348898,1.7952,3753.4,3750.1,0.13608095]
[1753012349201,1.6624,3751.3,3750.1,0.021]
[1753012349499,1.6624,3751.3,3750.1,1.6808]
[1753012349696,1.6624,3751.9,3750.5,0.4621]
[1753012349863,0.0266489,3751.8,3750.1,1.6808]
[1753012350060,0.4305,3751.7,3750.1,1.6808]
[1753012350258,1.82864,3751.9,3750.1,1.6808]
[1753012350259,1.8552889,3751.9,3750.1,1.6808]
[1753012350464,2.0929,3751.9,3750.2,0.48876524]
[1753012350664,2.0929,3751.9,3750.2,0.4621]
[1753012350873,0.0266489,3751.8,3750.1,1.6808]
[1753012351073,0.4305,3751.7,3750.1,0.021]
[1753012351277,0.0266489,3751.6,3750.1,0.021]
[1753012351697,0.4305,3751.5,3750.1,0.021]
[1753012351907,0.0266489,3751.4,3750.1,0.021]
[1753012352082,0.4305,3751.3,3750.1,0.021]
[1753012352281,0.4305,3751.2,3750.1,0.021]
[1753012352610,0.4305,3751.8,3750.1,0.04766595]
[1753012352806,0.20929,3751.7,3750.1,0.021]
[1753012352974,0.2359389,3751.7,3750.1,0.021]
[1753012353178,0.4305,3751.6,3750.1,0.021]
[1753012353377,0.0266489,3751.5,3750.1,0.021]
[1753012353599,0.4305,3751.4,3750.1,0.021]
[1753012353812,1.6624,3751.2,3750.1,0.021]
[1753012354017,1.87435489,3751.2,3750.1,0.021]
[1753012354201,2.30485489,3751.2,3750.1,0.021]
[1753012354509,2.0929,3751.2,3750.1,0.021]
[1753012354811,0.4571489,3751.7,3750.1,0.021]
[1753012354982,2.0929,3751.7,3750.1,0.021]
[1753012355401,0.4571489,3751.6,3750.1,0.021]
[1753012355605,0.21195489,3751.5,3750.1,0.021]
[1753012355806,0.0266489,3751.4,3750.1,0.021]
[1753012356005,0.4305,3751.3,3750.1,0.021]
[1753012356182,0.0266489,3751.2,3750.1,0.021]
[1753012356378,1.6890489,3751.2,3750.1,0.021]
[1753012356602,2.61926466,3751.2,3750.1,0.021]
[1753012356804,2.1195489,3751.2,3750.1,0.021]
[1753012357207,4.87835574,3751.0,3750.1,0.021]
[1753012357407,9.99800464,3751.0,3750.1,0.021]
[1753012357617,10.40185574,3751.0,3750.1,0.021]
[1753012357825,2.2124,3750.9,3750.1,0.021]
[1753012358123,0.55,3750.4,3750.1,0.021]
[1753012358325,0.0266489,3750.3,3750.1,0.021]
[1753012358500,2.0929,3750.2,3750.1,0.021]
[1753012359813,2.1195489,3750.2,3750.1,0.021]
[1753012361523,7.2135489,3750.2,3750.1,0.021]
[1753012361721,7.90825489,3750.2,3750.1,0.021]
[1753012362504,8.45825489,3750.2,3750.1,0.021]
[1753012363549,11.12477934,3750.2,3750.1,0.021]
[1753012364240,3.36425489,3750.2,3750.1,0.021]
[1753012364440,7.7369,3750.2,3750.1,0.021]
[1753012365338,2.6429,3750.2,3750.1,0.021]
[1753012365551,7.7635489,3750.2,3750.1,0.021]
[1753012365740,7.7369,3750.2,3750.1,0.021]
[1753012366144,10.40342445,3750.2,3750.1,0.021]
[1753012366345,11.71040572,3750.2,3750.1,0.021]
[1753012369064,3.94988127,3750.2,3750.1,0.021]
[1753012369229,7.1859,3750.2,3750.1,0.021]
[1753012369629,2.0929,3750.2,3750.1,0.021]
[1753012369826,7.1859,3750.2,3750.1,0.021]
[1753012370029,2.0929,3750.2,3750.1,0.021]
[1753012370259,5.093,3750.2,3750.1,0.021]
[1753012370866,5.5235,3750.2,3750.1,0.021]
[1753012371033,5.093,3750.2,3750.1,0.021]
[1753012371355,0.0266489,3750.6,3750.1,3.021]
[1753012371629,5.093,3750.5,3750.1,3.021]
[1753012371951,0.0266489,3750.4,3750.1,3.021]
[1753012372267,5.093,3750.5,3750.1,3.021]
[1753012372559,0.55,3750.2,3750.1,3.021]
[1753012372765,2.5981489,3750.2,3749.3,0.001]
[1753012372965,1.591,3750.2,3749.3,0.001]
[1753012373276,5.092,3750.1,3749.3,0.001]
[1753012373580,6.391,3750.7,3749.4,0.4621]
[1753012373876,5.5491489,3750.6,3749.3,0.001]
[1753012374078,0.55,3750.5,3749.3,0.001]
[1753012374383,0.0266489,3750.4,3749.3,0.001]
[1753012374536,6.391,3750.7,3749.3,0.001]
[1753012374537,6.391,3750.7,3750.1,0.001]
[1753012374735,5.091,3750.6,3750.1,0.001]
[1753012374937,0.0266489,3750.5,3750.1,0.001]
[1753012375960,5.091,3750.4,3750.1,0.001]
[1753012376372,5.091,3750.3,3750.1,0.001]
[1753012376944,0.0266489,3750.2,3750.1,0.001]
[1753012377264,5.091,3750.3,3750.1,0.001]
[1753012377463,0.94226489,3750.2,3749.3,0.001]
[1753012377673,0.002,3750.9,3749.4,2.0723]
[1753012377841,5.09,3750.8,3749.5,0.48307022]
[1753012378168,0.002,3750.9,3749.7,3.0]
[1753012378372,0.002,3750.9,3749.9,4.6102]
[1753012378577,0.002,3750.9,3750.1,3.0]
[1753012378730,0.002,3750.9,3750.3,3.0]
[1753012379064,0.002,3750.9,3750.3,0.19694991]
[1753012379370,0.002,3750.9,3750.4,0.4564]
[1753012379865,0.002,3750.9,3750.2,0.4564]
[1753012380251,0.002,3750.9,3750.3,0.02666453]
[1753012380451,0.002,3750.9,3750.4,0.4564]
[1753012380654,0.002,3750.9,3749.9,1.6102]
[1753012380952,0.002,3750.9,3750.0,0.4564]
[1753012382337,0.002,3750.9,3750.2,3.0]
[1753012382630,0.002,3750.9,3750.1,10.15113095]
[1753012382631,0.002,3750.9,3750.4,3.0]
[1753012382867,0.002,3750.9,3750.6,3.0]
[1753012383044,0.002,3750.9,3750.8,3.0]
[1753012384474,0.002,3751.7,3750.9,13.864185]
[1753012384769,0.002,3751.7,3751.2,1.6641]
[1753012384960,0.002,3751.7,3751.4,3.0]
[1753012385144,0.002,3751.7,3751.6,3.0]
[1753012385536,0.002,3751.7,3751.6,3.4564]
[1753012385731,0.002,3751.7,3751.6,3.0]
[1753012386349,0.002,3751.7,3751.2,1.6641]
[1753012386548,0.002,3751.7,3750.5,2.1205]
[1753012386879,0.4770489,3751.7,3750.5,1.6641]
[1753012387035,0.0286489,3751.7,3750.5,1.6641]
[1753012387237,0.002,3751.7,3750.7,1.6641]
[1753012387476,0.002,3751.7,3751.0,1.6641]
[1753012387637,0.002,3751.7,3751.5,0.1328]
[1753012388148,0.002,3751.7,3751.6,6.9634]
[1753012388682,0.002,3751.7,3751.6,6.95016]
[1753012388850,0.002,3751.7,3751.6,3.4564]
[1753012389478,0.002,3751.7,3751.6,3.0]
[1753012390106,0.002,3751.7,3751.0,1.6641]
[1753012390270,0.1328,3751.1,3751.0,1.6641]
[1753012390477,0.1328,3751.1,3751.0,2.1205]
[1753012391191,0.1328,3751.1,3751.0,1.6641]
[1753012391394,0.1328,3751.1,3750.5,2.1997]
[1753012391708,0.1328,3750.8,3750.5,1.6105]
[1753012391911,0.1328,3750.8,3750.2,0.1328]
[1753012391912,0.1328,3750.8,3750.2,0.15946524]
[1753012392121,0.002,3751.7,3750.2,0.4564]
[1753012392410,5.5284,3751.6,3750.0,0.20404317]
[1753012392613,0.61070489,3751.5,3749.9,1.6105]
[1753012392796,0.63735379,3751.5,3749.9,1.6105]
[1753012393200,1.576,3751.4,3749.9,1.6105]
[1753012393415,1.576,3751.4,3750.0,3.41997166]
[1753012393574,5.08,3751.6,3750.1,13.256034]
[1753012393777,5.7478,3751.6,3750.2,20.48205224]
[1753012393976,0.002,3751.7,3750.5,1.6105]
[1753012394174,0.002,3751.7,3750.7,3.0]
[1753012394379,0.002,3751.7,3750.8,0.02666097]
[1753012394715,0.002,3751.7,3750.5,2.0669]
[1753012395079,0.0286489,3751.7,3750.5,1.6105]
[1753012395417,2.0244,3751.6,3749.9,1.81019787]
[1753012395573,0.20530489,3751.5,3750.0,3.713414]
[1753012395780,0.20530489,3751.5,3750.2,3.0]
[1753012396026,1.576,3751.6,3750.4,3.0]
[1753012396184,0.002,3751.7,3749.9,1.6105]
[1753012396185,0.002,3751.7,3750.6,3.0]
[1753012396390,0.002,3751.7,3750.5,3.4564]
[1753012396716,0.002,3751.4,3750.5,0.4564]
[1753012399007,0.002,3751.4,3750.1,0.4564]
[1753012399415,0.002,3751.4,3749.9,1.81022019]
[1753012399611,0.002,3751.4,3749.9,0.001]
[1753012399612,0.55,3751.2,3749.9,0.001]
[1753012399914,0.002,3751.4,3750.0,3.807119]
[1753012400223,0.002,3751.4,3750.0,1.5851]
[1753012400224,0.4504,3751.4,3750.0,1.5851]
[1753012400423,0.4504,3751.4,3750.1,5.430828]
[1753012400626,0.002,3751.4,3750.3,3.0]
[1753012400812,0.002,3751.4,3750.5,3.0]
[1753012400983,0.002,3751.4,3750.7,3.0]
[1753012401324,0.002,3751.4,3750.9,3.0]
[1753012401496,0.002,3751.4,3751.1,3.0]
[1753012401683,0.002,3751.4,3750.9,0.4564]
[1753012401886,0.002,3751.4,3750.0,1.5851]
[1753012402108,0.1328,3751.1,3750.5,0.5892]
[1753012402486,0.1328,3751.1,3750.6,2.577815]
[1753012402691,0.002,3751.4,3750.0,1.5851]
[1753012402883,0.1328,3750.8,3750.2,0.5892]
[1753012403185,0.1328,3750.5,3750.2,0.4564]
[1753012403791,0.1328,3750.5,3750.0,1.5851]
[1753012404003,0.1328,3750.5,3750.0,2.0415]
[1753012404225,0.0266489,3751.2,3749.9,0.001]
[1753012404387,0.1328,3750.1,3749.9,0.001]
[1753012407449,2.0055489,3750.0,3749.9,0.001]
[1753012407746,1.5305,3750.0,3749.9,0.001]
[1753012408954,0.002,3751.4,3749.9,1.5988]
[1753012409125,0.002,3751.4,3750.1,3.0]
[1753012409315,0.15859,3751.3,3750.0,0.4534]
[1753012409515,0.15859,3751.3,3750.1,2.771]
[1753012409717,0.002,3751.4,3750.2,0.48006524]
[1753012409918,0.002,3751.4,3750.4,3.0]
[1753012410117,0.002,3751.4,3750.6,3.0]
[1753012410467,0.002,3751.4,3750.4,0.4534]
[1753012410752,0.002,3751.4,3750.6,3.0]
[1753012410913,0.002,3751.4,3750.4,0.4534]
[1753012411119,0.002,3751.4,3750.6,3.0]
[1753012411349,0.002,3751.4,3750.8,3.0]
[1753012411714,0.002,3751.4,3750.1,0.4534]
[1753012411915,0.0286489,3751.4,3750.1,0.4534]
[1753012412115,0.4436,3751.3,3750.1,0.4534]
[1753012412351,0.0266489,3751.2,3749.9,1.5988]
[1753012412653,2.0275,3751.1,3749.9,0.001]
[1753012412817,0.23206379,3751.0,3749.9,0.001]
[1753012413137,0.67566379,3751.0,3749.9,0.001]
[1753012413340,0.55,3750.9,3749.9,0.001]
[1753012413656,0.0266489,3750.8,3749.9,0.001]
[1753012413849,1.5839,3750.7,3749.9,0.001]
[1753012414025,0.28706379,3750.6,3749.9,0.001]
[1753012414231,0.55,3750.5,3749.9,0.001]
[1753012414421,1.5839,3750.3,3749.9,0.001]
[1753012414622,0.5766489,3750.2,3749.9,0.001]
[1753012414830,1.0202489,3750.2,3749.9,0.001]
[1753012415054,0.70401489,3750.1,3749.9,0.001]
[1753012415252,0.0266489,3750.0,3749.9,0.001]
[1753012415556,0.4702489,3750.0,3749.9,0.001]
[1753012415854,1.0202489,3750.0,3749.9,0.001]
[1753012416149,7.6701489,3750.0,3749.9,0.001]
[1753012416470,8.43655638,3750.0,3749.9,0.001]
[1753012419250,2.37695638,3750.0,3749.9,0.001]
[1753012419456,7.1191489,3750.0,3749.9,0.001]
[1753012419665,7.0925,3750.0,3749.9,0.001]
[1753012420563,7.6425,3750.0,3749.9,0.001]
[1753012421624,2.5775,3750.0,3749.9,0.001]
[1753012421852,6.6745489,3750.0,3749.9,0.001]
[1753012422065,7.78499638,3750.0,3749.9,0.001]
[1753012422266,8.33499638,3750.0,3749.9,0.001]
[1753012422667,7.78499638,3750.0,3749.9,0.001]
[1753012422949,8.33499638,3750.0,3749.9,0.001]
[1753012423547,7.78499638,3750.0,3749.9,0.001]
[1753012424080,8.33499638,3750.0,3749.9,0.001]
[1753012424244,7.78499638,3750.0,3749.9,0.001]
[1753012424440,0.69349638,3750.0,3749.9,0.001]
[1753012424778,10.34361556,3750.0,3749.9,0.001]
[1753012424984,0.55,3749.7,3749.5,0.001]
[1753012425180,0.0266489,3749.6,3749.5,0.001]
[1753012425381,0.4702489,3749.6,3749.5,0.001]
[1753012425882,0.9936,3749.6,3749.5,0.001]
[1753012426183,1.51921167,3749.6,3749.5,0.001]
[1753012426679,1.0202489,3749.6,3749.5,0.001]
[1753012428392,3.68720004,3749.6,3749.5,0.001]
[1753012428589,1.0202489,3749.6,3749.5,0.001]
[1753012428792,3.68720004,3749.6,3749.5,0.001]
[1753012429189,1.0202489,3749.6,3749.5,0.001]
[1753012429394,1.54853442,3749.6,3749.5,0.001]
[1753012429887,6.05553442,3749.6,3749.5,0.001]
[1753012430066,6.02888552,3749.6,3749.5,0.001]
[1753012430571,5.58428552,3749.6,3749.5,0.001]
[1753012430768,6.60453442,3749.6,3749.5,0.001]
[1753012430967,6.02788552,3749.6,3747.1,0.33819007]
[1753012431288,0.76235855,3749.5,3747.1,0.02]
[1753012431490,0.0266489,3749.4,3747.1,0.02]
[1753012432585,5.054,3749.3,3747.8,0.02668232]
[1753012432754,0.1328,3748.6,3748.0,0.1328]
[1753012432956,5.054,3748.5,3748.2,0.4534]
[1753012433273,5.054,3748.5,3748.3,0.4534]
[1753012433591,5.054,3748.5,3748.4,0.4534]
[1753012434697,5.1858,3748.6,3748.4,0.4534]
[1753012434900,5.1858,3748.6,3748.1,0.02]
[1753012435103,0.1328,3748.4,3748.2,0.4534]
[1753012435302,5.053,3748.6,3748.3,12.367562]
[1753012435303,5.052,3748.6,3748.3,12.367562]
[1753012435469,5.052,3748.6,3748.4,0.4534]
[1753012435664,5.052,3748.6,3748.5,0.4534]
[1753012435894,5.052,3748.6,3748.1,0.02]
[1753012436205,5.052,3748.6,3748.2,2.457473]
[1753012436375,5.052,3748.6,3748.1,3.02]
[1753012436583,5.052,3748.6,3748.2,0.4534]
[1753012436777,5.052,3748.6,3748.1,0.02]
[1753012436966,5.052,3748.6,3748.3,0.4534]
[1753012437170,0.1328,3748.7,3748.4,0.4534]
[1753012437395,5.051,3748.6,3748.5,0.4534]
[1753012437700,5.051,3748.6,3748.1,0.02]
[1753012437904,5.051,3748.6,3748.2,0.4564]
[1753012438091,5.051,3748.6,3748.1,0.02]
[1753012438092,0.1328,3748.4,3748.3,0.4564]
[1753012439602,5.048,3748.8,3748.4,3.0]
[1753012439764,5.048,3748.8,3748.1,0.04668018]
[1753012439765,0.1328,3748.7,3748.1,0.02]
[1753012439965,0.1328,3748.7,3748.5,0.4564]
[1753012440168,0.1328,3748.7,3748.6,0.4564]
[1753012441429,0.1328,3748.7,3748.3,0.001]
[1753012442106,0.4543,3748.6,3748.3,0.001]
[1753012442306,0.54993,3748.5,3748.3,0.001]
[1753012442484,1.00423,3748.5,3748.3,0.001]
[1753012442880,5.044,3748.4,3748.3,0.001]
[1753012443087,5.044,3748.4,3748.3,0.4574]
[1753012443881,5.044,3748.4,3748.3,0.001]
[1753012445482,6.5838,3748.4,3748.3,0.001]
[1753012445685,7.0381,3748.4,3748.3,0.001]
[1753012445886,7.74191,3748.4,3748.3,0.001]
[1753012448837,2.69791,3748.4,3748.3,0.001]
[1753012449135,7.0311,3748.4,3748.3,0.001]
[1753012449536,1.9941,3748.4,3748.3,0.001]
[1753012449755,7.0311,3748.4,3748.3,0.001]
[1753012450104,1.9941,3748.4,3748.3,0.001]
[1753012450308,7.0311,3748.4,3748.3,0.001]
[1753012450508,2.69721,3748.4,3748.3,0.001]
[1753012450710,7.0301,3748.4,3748.3,0.001]
[1753012451813,2.0972,3749.0,3748.3,0.001]
[1753012452009,5.035,3748.9,3748.3,0.001]
[1753012452240,2.1238489,3749.0,3748.3,0.001]
[1753012452241,2.0972,3749.0,3748.3,0.001]
[1753012452448,5.034,3748.9,3748.3,0.001]
[1753012452609,1.35272,3748.8,3748.3,0.001]
[1753012452914,0.0266489,3748.7,3748.3,0.001]
[1753012453108,0.4809489,3748.7,3748.3,0.001]
[1753012453314,0.4543,3748.6,3748.3,0.001]
[1753012454740,0.4809489,3748.5,3748.3,0.001]
[1753012454950,5.032,3748.4,3748.3,0.001]
[1753012455242,5.58329489,3748.4,3748.3,0.001]
[1753012455635,5.58129489,3748.4,3748.3,0.001]
[1753012457844,6.03559489,3748.4,3748.3,0.001]
[1753012459885,1.35272,3748.8,3748.3,0.001]
[1753012460087,5.0506489,3748.7,3748.3,0.001]
[1753012460253,5.5049489,3748.7,3748.3,0.001]
[1753012460442,5.024,3748.6,3748.3,0.001]
[1753012461044,0.0266489,3748.5,3748.3,0.001]
[1753012461242,0.50506489,3748.4,3748.3,0.001]
[1753012461994,5.52806489,3748.4,3748.3,0.001]
[1753012462600,5.98236489,3748.4,3748.3,0.001]
[1753012462767,5.52806489,3748.4,3748.3,0.001]
[1753012462947,0.50506489,3748.4,3748.3,0.001]
[1753012463153,5.021,3748.4,3748.3,0.001]
[1753012463653,0.002,3748.6,3748.3,0.001]
[1753012463992,5.02,3748.5,3748.3,0.001]
[1753012464147,0.002,3748.6,3748.3,0.001]
[1753012464350,5.019,3748.4,3748.3,0.001]
[1753012464749,0.002,3748.6,3748.3,0.001]
[1753012464990,5.019,3748.5,3748.3,0.001]
[1753012465153,5.018,3748.4,3748.3,0.001]
[1753012465354,0.002,3748.6,3748.3,0.4574]
[1753012465650,5.017,3748.5,3748.4,0.4564]
[1753012465892,5.017,3748.5,3748.3,0.001]
[1753012467252,0.002,3748.6,3748.4,0.4564]
[1753012467586,0.002,3748.6,3748.5,0.4564]
[1753012467888,0.002,3748.6,3748.5,7.762]
[1753012468099,0.002,3748.6,3748.5,3.4344]
[1753012468887,0.002,3748.6,3748.5,7.613871]
[1753012469072,0.002,3748.6,3748.5,3.0]
[1753012469850,5.013,3748.6,3748.5,3.0]
[1753012470051,5.013,3748.6,3746.9,4.52624812]
[1753012470250,0.1328,3748.5,3747.9,0.1328]
[1753012470464,0.1328,3748.5,3748.0,2.06648]
[1753012470790,0.1328,3748.5,3747.9,0.1328]
[1753012471364,0.64738,3748.5,3747.9,0.1328]
[1753012471567,0.1328,3748.1,3747.4,0.1328]
[1753012471766,0.1328,3748.1,3747.5,4.335736]
[1753012472081,5.008,3748.4,3747.9,0.1328]
[1753012472479,0.002,3748.6,3746.9,0.02668872]
[1753012472682,0.1328,3748.3,3747.7,0.1328]
[1753012473000,0.1328,3748.3,3747.9,1.5401]
[1753012473402,0.1328,3748.3,3748.1,3.0]
[1753012473712,0.1328,3748.3,3747.9,1.5401]
[1753012473914,0.1328,3748.3,3748.0,3.0]
[1753012477508,0.1328,3748.3,3748.1,0.02668018]
[1753012477709,0.1328,3748.3,3748.2,7.544]
[1753012477883,0.1328,3748.3,3748.2,5.757]
[1753012478085,0.1328,3748.3,3748.2,3.0]
[1753012479589,0.1328,3748.3,3748.2,6.411428]
[1753012480005,0.1328,3748.3,3748.2,3.0]
[1753012480493,0.1328,3748.3,3748.2,5.667287]
[1753012480696,0.1328,3748.3,3748.2,5.458]
[1753012481019,0.1328,3748.3,3748.2,3.0]
[1753012481592,0.1328,3748.3,3748.2,7.0195]
[1753012481834,0.1328,3748.3,3748.2,3.0]
[1753012486001,0.1328,3748.5,3747.9,0.1328]
[1753012486202,0.1328,3748.5,3747.6,1.5247]
[1753012486203,0.4702,3748.5,3747.6,1.5247]
[1753012486398,0.1328,3748.2,3747.8,3.0]
[1753012486649,0.1328,3748.2,3747.6,1.6575]
[1753012486823,0.1328,3748.2,3747.8,3.0]
[1753012487007,0.1328,3748.2,3747.6,1.6575]
[1753012487535,0.1328,3748.2,3747.8,3.0]
[1753012487738,0.1328,3747.9,3747.8,3.0]
[1753012487938,0.1328,3747.9,3747.4,0.001]
[1753012488139,0.1328,3747.9,3747.6,3.0]
[1753012488348,0.1328,3747.9,3747.4,0.001]
[1753012489640,0.603,3747.9,3747.4,0.001]
[1753012489851,0.1328,3747.5,3747.4,0.001]
[1753012491048,0.1328,3747.6,3747.5,3.0]
[1753012491345,0.1328,3747.6,3747.5,9.341746]
[1753012491645,0.1328,3747.6,3747.5,3.0]
[1753012493131,0.4702,3748.1,3747.5,3.0]